bitfinex-derivatives/quotes_ETHF0:USTF0_20250627
["timestamp","ask_amount","ask_price","bid_price","bid_amount"]
[1751034088436,2.8147,2426.1,2426.0,3.2078]
[1751034088638,2.8147,2426.1,2426.0,29.1118]
[1751034088942,0.82411,2426.0,2425.9,6.936]
[1751034089136,3.63861,2426.0,2425.9,32.84]
[1751034089442,2.21541,2426.0,2425.9,32.84]
[1751034089936,2.21541,2426.0,2425.9,33.66414]
[1751034090139,1.3913,2426.0,2425.9,33.66414]
[1751034090333,2.21541,2426.0,2425.9,33.66414]
[1751034091442,2.21541,2426.0,2425.9,32.84]
[1751034092444,3.67871,2426.0,2425.9,32.84]
[1751034093540,0.82418,2425.8,2425.7,3.2078]
[1751034093841,0.82418,2425.8,2425.7,36.0468]
[1751034094239,0.82418,2425.8,2425.7,3.2078]
[1751034094741,0.82418,2425.8,2425.7,29.1108]
[1751034095434,0.82418,2425.8,2425.7,3.2078]
[1751034095640,0.82418,2425.8,2425.7,29.1108]
[1751034096033,0.82418,2425.8,2425.7,3.2078]
[1751034096440,0.82418,2425.8,2425.7,29.1098]
[1751034097742,1.91472881,2425.8,2425.7,29.1098]
[1751034097936,3.32802881,2425.8,2425.7,29.1098]
[1751034098134,5.31862881,2425.8,2425.7,29.1098]
[1751034098335,5.31862881,2425.8,2425.7,25.903]
[1751034100146,3.90532881,2425.8,2425.7,25.903]
[1751034100530,0.82425,2425.6,2425.5,48.32126]
[1751034100735,1.91479881,2425.6,2425.5,81.16026]
[1751034101041,0.82423,2425.7,2425.6,0.82425]
[1751034101243,1.09102779,2425.7,2425.6,0.82425]
[1751034101445,0.82419,2425.8,2425.7,0.82421]
[1751034101634,1.3913,2426.0,2425.6,1.4373]
[1751034101635,0.82421,2425.7,2425.6,2.26154]
[1751034101834,2.81481,2425.7,2425.6,3.2078]
[1751034102031,1.91517709,2425.7,2425.6,10.1448]
[1751034102244,3.90577709,2425.7,2425.6,36.0468]
[1751034103346,3.90577709,2425.7,2425.6,36.87105]
[1751034103640,3.08156709,2425.7,2425.6,36.87105]
[1751034103846,3.08156709,2425.7,2425.6,38.23305]
[1751034104038,1.9906,2425.7,2425.6,38.23305]
[1751034104341,8.99594,2426.5,2425.6,38.23305]
[1751034104342,3.2078,2426.6,2425.6,9.5698]
[1751034104546,0.82415,2425.9,2425.8,0.82416]
[1751034104743,3.90586423,2425.9,2425.8,32.839]
[1751034104941,3.90586423,2425.9,2425.8,33.66318]
[1751034105744,0.82418,2425.8,2425.7,4.032]
[1751034105945,2.64219423,2425.8,2425.7,36.871]
[1751034106332,2.64219423,2425.8,2425.7,29.1088]
[1751034106541,2.64219423,2425.8,2425.7,36.0458]
[1751034106846,4.63279423,2425.8,2425.7,36.0458]
[1751034107947,4.63279423,2425.8,2425.7,3.2078]
[1751034108447,3.80861423,2425.8,2425.7,29.93201]
[1751034108651,4.63279423,2425.8,2425.7,29.1078]
[1751034108848,4.63279423,2425.8,2425.7,29.93201]
[1751034109044,3.54168,2425.8,2425.7,29.93201]
[1751034111348,4.63128954,2425.8,2425.7,29.1078]
[1751034111549,4.63128954,2425.8,2425.7,36.86201]
[1751034112352,4.63128954,2425.8,2425.7,4.03201]
[1751034112558,4.63128954,2425.8,2425.7,36.86101]
[1751034112853,4.63128954,2425.8,2425.7,36.0368]
[1751034113152,0.82425,2425.6,2425.5,47.497]
[1751034113453,0.82425,2425.6,2425.5,80.325]
[1751034116053,0.82425,2425.6,2425.5,47.497]
[1751034116351,1.91466043,2425.6,2425.5,80.324]
[1751034116548,1.91466043,2425.6,2425.5,47.497]
[1751034116744,1.91466043,2425.6,2425.5,80.324]
[1751034117049,3.90526043,2425.6,2425.5,32.827]
[1751034117439,4.61776043,2425.6,2425.5,32.827]
[1751034117846,4.61776043,2425.6,2425.5,32.826]
[1751034118048,0.82428,2425.5,2425.4,3.2078]
[1751034118354,1.91469043,2425.5,2425.4,29.1028]
[1751034118649,1.91469043,2425.5,2425.4,29.92712]
[1751034118853,0.82435,2425.3,2425.2,7.75536]
[1751034119053,0.82435,2425.3,2425.2,32.826]
[1751034119354,0.82438,2425.2,2425.1,3.2078]
[1751034119556,0.82437,2425.3,2425.2,0.82437]
[1751034119747,0.82438,2425.2,2425.1,36.85819]
[1751034120054,0.82438,2425.3,2425.2,0.82437]
[1751034120256,1.0892866,2425.5,2425.2,7.33881492]
[1751034120557,4.03194,2426.0,2425.4,5.26859]
[1751034120756,1.5275,2426.1,2426.0,0.82411]
[1751034120961,1.08953395,2426.1,2426.0,26.71811]
[1751034121452,1.26183395,2426.1,2426.0,28.03871]
[1751034121752,2.08591395,2426.1,2426.0,28.03871]
[1751034121955,1.26183395,2426.1,2426.0,28.03871]
[1751034122156,1.26183395,2426.1,2426.0,31.24651]
[1751034122855,1.08953395,2426.1,2426.0,31.24651]
[1751034124658,13.40068475,2426.9,2426.0,31.24651]
[1751034124659,0.82386,2426.8,2426.6,0.8239]
[1751034124855,0.82391,2426.6,2426.5,3.2078]
[1751034125052,1.91391362,2426.6,2426.5,36.0298]
[1751034125252,1.93121362,2426.6,2426.5,36.0298]
[1751034125850,1.10730362,2426.6,2426.5,36.85374]
[1751034127353,1.10730362,2426.6,2426.5,44.19255492]
[1751034127550,0.82374,2427.1,2427.0,0.82377]
[1751034127746,1.08804513,2427.1,2427.0,26.71277]
[1751034127957,1.91178513,2427.1,2427.0,25.889]
[1751034128153,1.08804513,2427.1,2427.0,26.71277]
[1751034128356,3.07864513,2427.1,2427.0,26.71277]
[1751034128756,3.07864513,2427.1,2427.0,28.15567]
[1751034128961,1.9906,2427.1,2427.0,28.15567]
[1751034129658,1.9906,2427.1,2427.0,25.886]
[1751034129962,2.81434,2427.1,2427.0,25.886]
[1751034130360,0.82377,2427.0,2426.9,3.2078]
[1751034130664,1.53317,2427.0,2426.9,36.0238]
[1751034131161,0.7094,2427.0,2426.9,36.84761]
[1751034131561,1.9906,2427.1,2427.0,0.82377]
[1751034131750,1.9906,2427.1,2427.0,2.26627]
[1751034133256,1.9906,2427.1,2427.0,2.73507]
[1751034134060,1.549,2427.8,2427.6,0.82356]
[1751034134264,0.7255,2427.8,2427.7,26.70153]
[1751034134761,1.5857,2427.8,2427.7,25.878]
[1751034135463,0.82353,2427.7,2427.6,3.2078]
[1751034135664,0.82353,2427.7,2427.6,36.0148]
[1751034136557,0.82353,2427.7,2427.6,3.2078]
[1751034136752,0.82364,2427.4,2427.3,3.2078]
[1751034136956,0.82364,2427.4,2427.3,29.0818]
[1751034137356,0.6717,2427.6,2427.3,29.0818]
[1751034137564,1.9913,2427.7,2427.6,0.82357]
[1751034137758,2.05893,2427.6,2427.1,6.928]
[1751034137955,0.82374,2427.2,2427.1,32.802]
[1751034138667,0.7265,2427.3,2427.1,32.802]
[1751034138860,0.8237,2427.2,2427.1,32.802]
[1751034139056,0.82377,2427.0,2426.9,3.2078]
[1751034139260,0.82387,2426.7,2426.6,50.6948]
[1751034139461,0.82383,2426.9,2426.6,83.4968]
[1751034139662,0.82375,2427.1,2426.6,91.05360316]
[1751034139960,0.82375,2427.1,2427.0,3.2078]
[1751034140161,0.82375,2427.1,2427.0,36.0088]
[1751034140363,2.81505,2427.1,2427.0,36.0088]
[1751034140768,2.81505,2427.1,2427.0,37.3566]
[1751034141669,1.9913,2427.1,2427.0,37.3486]
[1751034141870,0.6662,2427.4,2427.0,37.3486]
[1751034142071,0.82374,2427.1,2427.0,37.3486]
[1751034142262,2.81503,2427.2,2427.0,38.17236]
[1751034142462,0.82374,2427.1,2427.0,37.3486]
[1751034143862,0.82374,2427.1,2427.0,38.17137]
[1751034144057,0.82374,2427.1,2427.0,37.3476]
[1751034144369,1.9913,2427.2,2427.1,0.82374]
[1751034144563,1.9913,2427.2,2427.1,2.27074]
[1751034144773,0.82359,2427.6,2427.1,6.447]
[1751034145065,0.82348,2427.9,2427.7,0.82351]
[1751034145268,0.702,2428.3,2427.9,0.82345]
[1751034145465,0.82342,2428.1,2428.0,27.2243]
[1751034145963,0.82342,2428.1,2428.0,25.872]
[1751034146164,2.6933,2428.3,2428.0,25.872]
[1751034146460,2.6933,2428.3,2428.1,11.36999492]
[1751034146461,2.81463,2428.3,2428.1,11.36999492]
[1751034146665,2.81463,2428.3,2428.2,32.791]
[1751034146869,3.90366782,2428.3,2428.2,32.791]
[1751034147665,2.81463,2428.3,2428.2,32.791]
[1751034147864,1.9913,2428.3,2428.2,33.61437]
[1751034148466,1.9913,2428.3,2428.2,35.05037]
[1751034148770,0.82324,2428.6,2428.4,0.82328]
[1751034148973,0.82323,2428.6,2428.5,25.899]
[1751034149869,3.53112,2428.7,2428.5,26.72226]
[1751034150066,3.5311,2428.7,2428.6,6.919]
[1751034150368,3.79581747,2428.7,2428.6,7.74223]
[1751034150565,4.61901747,2428.7,2428.6,6.919]
[1751034150756,4.61901747,2428.7,2428.6,7.74223]
[1751034150961,2.7079,2428.7,2428.6,6.919]
[1751034151161,3.5311,2428.7,2428.6,6.919]
[1751034151363,0.82326,2428.5,2428.4,3.2078]
[1751034151670,0.82326,2428.5,2428.4,36.0058]
[1751034151871,0.82326,2428.5,2428.4,36.8291]
[1751034152073,3.53111,2428.7,2428.4,36.0058]
[1751034152269,0.82323,2428.6,2428.4,36.82907]
[1751034152469,0.82326,2428.5,2428.4,36.82907]
[1751034152770,3.53112,2428.7,2428.4,36.0058]
[1751034152966,3.53112,2428.7,2428.6,0.82323]
[1751034153173,3.53112,2428.7,2428.6,26.69623]
[1751034153375,3.53112,2428.7,2428.6,25.873]
[1751034153573,3.79571711,2428.7,2428.6,26.69623]
[1751034154971,2.7079,2428.7,2428.6,26.69623]
[1751034155366,4.61885107,2428.7,2428.6,25.873]
[1751034155574,4.61885107,2428.7,2428.6,26.69623]
[1751034155771,3.79565107,2428.7,2428.6,32.779]
[1751034156071,4.61885107,2428.7,2428.6,32.779]
[1751034156267,0.82326,2428.5,2428.4,3.2078]
[1751034156468,1.91104107,2428.5,2428.4,6.917]
[1751034156673,1.08775107,2428.5,2428.4,36.8091]
[1751034156968,0.82326,2428.5,2428.4,36.80907]
[1751034157171,1.08811675,2428.5,2428.4,36.80907]
[1751034158475,2.7079,2428.7,2428.5,0.82326]
[1751034158674,3.5311,2428.7,2428.6,25.86]
[1751034159175,0.82326,2428.5,2428.4,3.2078]
[1751034159474,0.82326,2428.5,2428.4,35.9848]
[1751034159766,0.82326,2428.5,2428.4,3.2078]
[1751034159977,0.82339,2428.2,2428.1,3.2078]
[1751034160165,0.82339,2428.2,2428.1,35.9838]
[1751034160366,1.3648,2428.4,2428.1,35.9838]
[1751034160565,0.82337,2428.2,2428.1,3.2078]
[1751034160773,0.8234,2428.1,2428.0,25.859]
[1751034161576,2.1882,2428.1,2428.0,25.859]
[1751034161974,1.3648,2428.1,2428.0,25.859]
[1751034162169,0.8234,2428.1,2428.0,25.859]
[1751034162364,0.8234,2428.1,2428.0,26.68243]
[1751034162972,1.9913,2428.2,2428.0,25.858]
[1751034163177,0.8234,2428.1,2428.0,26.68142]
[1751034163579,0.8234,2428.1,2428.0,25.858]
[1751034163781,2.8147,2428.1,2428.0,26.68143]
[1751034164076,1.9913,2428.1,2428.0,26.68143]
[1751034167580,1.9913,2428.1,2427.8,4.03127]
[1751034167884,2.1912,2428.0,2427.9,6.917]
[1751034168083,2.1912,2428.0,2427.8,4.03128]
[1751034168277,5.00593,2428.0,2427.9,32.775]
[1751034169285,0.82347,2427.9,2427.8,3.2078]
[1751034169582,2.16187,2427.9,2427.8,6.917]
[1751034169880,0.82357,2427.6,2427.5,50.6728]
[1751034170083,0.6988,2427.8,2427.6,0.82356]
[1751034170380,2.86073,2427.8,2427.7,25.858]
[1751034173571,0.82357,2427.6,2427.5,51.49638]
[1751034173771,10.54661492,2427.6,2426.9,3.2078]
[1751034173979,7.33881492,2427.3,2426.8,0.82383]
[1751034174173,2.0413,2427.2,2426.8,7.73883]
[1751034174383,0.82375,2427.1,2426.9,25.858]
[1751034174584,0.82377,2427.0,2426.9,0.82379]
[1751034174884,0.7126,2427.0,2426.9,26.68179]
[1751034175388,0.714,2427.2,2427.1,0.82374]
[1751034175581,0.82377,2427.0,2426.9,4.03159]
[1751034175885,0.82377,2427.0,2426.9,36.80461]
[1751034176087,1.48896,2427.1,2427.0,0.82377]
[1751034176282,0.82377,2427.0,2426.9,36.80459]
[1751034176480,0.82377,2427.0,2426.9,35.9808]
[1751034176681,2.82726,2427.1,2426.9,36.80459]
[1751034176981,0.82377,2427.0,2426.9,35.9808]
[1751034177283,2.16207,2427.0,2426.9,35.9808]
[1751034177484,2.16207,2427.0,2426.9,3.2078]
[1751034177681,2.24297,2427.0,2426.9,35.9838]
[1751034177882,2.24297,2427.0,2426.9,3.2078]
[1751034178085,2.24297,2427.0,2426.9,35.9838]
[1751034178385,1.4192,2427.0,2426.9,36.80761]
[1751034178584,0.0809,2427.0,2426.9,36.80761]
[1751034178985,0.90467,2427.0,2426.9,36.80761]
[1751034179688,0.0809,2427.0,2426.9,36.80761]
[1751034180789,0.0809,2427.0,2426.9,41.80761]
[1751034181082,3.9016,2427.6,2427.4,0.82362]
[1751034181278,0.8236,2427.5,2427.4,0.82362]
[1751034181475,0.8236,2427.5,2427.4,32.777]
[1751034181679,0.82367,2427.3,2427.2,29.0678]
[1751034181983,0.82367,2427.3,2427.2,25.86]
[1751034182378,3.3507,2427.4,2426.8,3.2078]
[1751034182583,0.82377,2427.0,2426.9,32.778]
[1751034183186,0.82381,2426.9,2426.8,3.2078]
[1751034183383,2.18319,2427.0,2426.8,36.80964]
[1751034183580,4.17449,2427.0,2426.9,0.82381]
[1751034183778,0.82381,2426.9,2426.8,36.80962]
[1751034184184,3.3507,2427.0,2426.8,36.80961]
[1751034184390,4.17449,2427.0,2426.9,0.82381]
[1751034184888,4.17449,2427.0,2426.9,25.86]
[1751034185996,0.82391,2426.6,2426.5,3.2078]
[1751034186288,6.5585,2427.0,2426.6,0.8239]
[1751034186289,0.82388,2426.7,2426.6,0.8239]
[1751034187078,0.82385,2426.8,2426.7,0.82387]
[1751034187281,6.5585,2427.0,2426.9,0.82381]
[1751034187282,4.17449,2427.0,2426.9,0.82381]
[1751034187591,0.82379,2427.0,2426.9,25.861]
[1751034188087,2.11259,2427.0,2426.9,25.861]
[1751034188690,0.82391,2426.6,2426.5,4.03172]
[1751034188894,0.8239,2426.7,2426.6,0.82391]
[1751034189193,0.8239,2426.7,2426.5,36.81172]
[1751034189379,0.8239,2426.7,2426.6,0.82391]
[1751034189585,0.82386,2426.8,2426.7,0.82387]
[1751034189885,0.82383,2426.9,2426.8,0.82383]
[1751034190088,2.24553,2426.9,2426.8,0.82383]
[1751034190290,0.82384,2426.8,2426.7,26.68485]
[1751034190490,0.82383,2426.9,2426.8,0.82382]
[1751034190691,5.32039,2427.0,2426.9,0.82381]
[1751034191189,0.82383,2426.9,2426.8,0.82382]
[1751034191589,5.3204,2427.0,2426.9,0.82381]
[1751034191792,4.4966,2427.0,2426.9,0.82381]
[1751034191993,0.82382,2426.9,2426.8,0.82382]
[1751034192194,5.32039,2427.0,2426.9,0.82381]
[1751034192389,5.32039,2427.0,2426.7,25.861]
[1751034192595,0.82384,2426.8,2426.7,26.68486]
[1751034193593,1.49814,2426.8,2426.7,26.68486]
[1751034194497,0.6743,2426.8,2426.7,26.68486]
[1751034194690,1.49814,2426.8,2426.7,26.68486]
[1751034195397,0.6743,2426.8,2426.7,26.68486]
[1751034195600,1.49814,2426.8,2426.7,26.68486]
[1751034196090,0.6743,2426.8,2426.5,3.2078]
[1751034196295,0.82391,2426.6,2426.5,3.2078]
[1751034196594,0.82394,2426.5,2426.4,33.60198]
[1751034196799,0.82394,2426.5,2426.4,26.68298]
[1751034196987,7.2967,2426.7,2426.3,0.824]
[1751034196988,0.82401,2426.4,2426.3,0.824]
[1751034197188,0.82401,2426.3,2426.2,4.03183]
[1751034197388,0.82399,2426.4,2426.3,0.82398]
[1751034197990,0.82401,2426.3,2426.2,4.03184]
[1751034198688,0.82401,2426.3,2426.2,36.80884]
[1751034198890,0.824,2426.4,2426.3,0.82401]
[1751034199199,1.9913,2426.6,2426.3,32.777]
[1751034199383,1.9913,2426.6,2426.5,0.82394]
[1751034199384,2.81522,2426.6,2426.5,0.82394]
[1751034199588,0.82396,2426.5,2426.4,0.82395]
[1751034199898,0.82396,2426.5,2426.4,25.859]
[1751034200096,0.82396,2426.5,2426.4,26.68298]
[1751034200391,1.9913,2426.6,2426.5,0.82394]
[1751034200600,1.9913,2426.6,2426.5,4.03174]
[1751034200803,4.6165,2427.1,2426.6,2.05975]
[1751034201097,1.08592992,2427.0,2426.9,0.82379]
[1751034201808,1.97632992,2427.0,2426.9,0.82379]
[1751034202992,0.82384,2426.8,2426.7,33.60086]
[1751034203199,0.82387,2426.7,2426.6,25.856]
[1751034203398,2.93267,2426.7,2426.6,26.67991]
[1751034203601,0.7086,2426.7,2426.6,26.67991]
[1751034204498,1.53247,2426.7,2426.6,25.856]
[1751034204700,0.7086,2426.7,2426.6,26.67991]
[1751034205202,0.82391,2426.6,2426.5,10.1178]
[1751034205407,0.82399,2426.4,2426.3,0.82399]
[1751034205600,1.4113,2426.5,2426.4,0.82398]
[1751034205799,2.717,2426.6,2426.5,0.82394]
[1751034206004,0.82394,2426.5,2426.4,25.854]
[1751034206204,3.54093,2426.6,2426.5,0.82394]
[1751034206405,4.62864803,2426.6,2426.5,0.82394]
[1751034206707,0.82394,2426.5,2426.4,25.854]
[1751034207006,0.82398,2426.4,2426.3,6.91]
[1751034207200,0.82398,2426.4,2426.3,32.764]
[1751034207508,0.82401,2426.3,2426.2,3.2078]
[1751034207698,1.51591,2426.3,2426.2,25.853]
[1751034207892,1.7794703,2426.3,2425.7,48.29119]
[1751034208093,0.82419,2425.8,2425.7,25.853]
[1751034208293,0.82419,2425.8,2425.7,0.82421]
[1751034208608,0.82416,2425.9,2425.8,0.82418]
[1751034208799,0.82417,2425.9,2425.6,32.764]
[1751034209103,0.82419,2425.8,2425.6,7.73523]
[1751034209300,0.7227,2425.8,2425.7,26.67821]
[1751034209709,3.2078,2426.1,2425.9,0.82412]
[1751034209908,1.08664662,2426.0,2425.9,0.82412]
[1751034210098,1.15454662,2426.0,2425.9,4.03192]
[1751034210301,0.0679,2426.0,2425.9,4.03192]
[1751034213203,1.53072,2426.3,2426.2,0.82404]
[1751034213412,2.61734833,2426.3,2426.2,0.82404]
[1751034213807,19.33124325,2426.3,2425.7,6.911]
[1751034214014,0.82421,2425.7,2425.6,3.2078]
[1751034214615,0.82425,2425.6,2425.5,32.762]
[1751034214912,0.82432,2425.4,2425.3,3.2078]
[1751034215204,0.82432,2425.4,2425.3,35.9708]
[1751034215403,0.82432,2425.4,2425.3,36.79515]
[1751034215800,0.82432,2425.4,2425.3,10.1188]
[1751034216001,0.82432,2425.4,2425.3,36.79513]
[1751034216202,0.82432,2425.4,2425.3,35.9708]
[1751034216405,0.82432,2425.4,2425.3,35.9698]
[1751034216607,0.82447,2425.0,2424.9,3.2078]
[1751034216906,0.82447,2425.0,2424.9,35.9698]
[1751034217117,0.82447,2425.0,2424.9,10.1198]
[1751034217412,0.82447,2425.0,2424.9,3.2078]
[1751034217611,0.82455,2424.7,2424.6,3.2078]
[1751034217805,2.06152,2424.6,2424.1,6.912]
[1751034218006,7.33881492,2424.4,2424.1,0.82475]
[1751034218206,0.82471,2424.3,2424.0,25.852]
[1751034218412,0.82471,2424.3,2424.0,26.67677]
[1751034218709,0.82479,2424.0,2423.9,3.2078]
[1751034219013,0.82478,2424.1,2423.9,29.0598]
[1751034219215,4.1415,2424.2,2423.9,29.0598]
[1751034220015,4.1415,2424.2,2424.0,0.82478]
[1751034220310,4.96624,2424.2,2424.0,0.82478]
[1751034220509,0.82477,2424.1,2423.9,29.88461]
[1751034220812,4.96625,2424.2,2423.9,0.82482]
[1751034221014,0.82476,2424.1,2423.9,0.82482]
[1751034221216,1.3313,2424.1,2424.0,0.82479]
[1751034222308,1.9913,2424.2,2424.1,0.82476]
[1751034222514,0.67,2424.6,2424.5,0.82462]
[1751034222722,0.9176,2424.6,2424.5,0.82462]
[1751034223213,0.2476,2424.6,2424.5,0.82462]
[1751034223919,4.03217,2425.3,2425.1,0.82441]
[1751034224117,4.73127,2425.3,2425.1,0.82441]
[1751034224320,0.6991,2425.3,2425.2,0.82438]
[1751034224712,2.4428,2425.3,2425.2,0.82438]
[1751034227624,3.26717,2425.3,2425.1,36.8042]
[1751034227923,3.26717,2425.3,2425.1,33.5964]
[1751034228123,2.4428,2425.3,2425.2,0.82438]
[1751034229324,1.7437,2425.3,2425.2,0.82438]
[1751034231228,1.7437,2425.3,2425.2,9.03218]
[1751034231414,3.8902,2426.1,2425.7,0.82418]
[1751034231620,0.82417,2425.9,2425.7,26.67618]
[1751034232024,2.56788,2425.8,2425.7,26.67618]
[1751034232220,2.56788,2425.8,2425.7,25.852]
[1751034232424,1.7437,2425.8,2425.2,4.5996]
[1751034232728,0.82431,2425.5,2425.4,25.852]
[1751034232917,0.82431,2425.5,2425.4,26.67632]
[1751034233226,0.82431,2425.5,2425.4,25.852]
[1751034233618,2.86611,2425.5,2425.4,25.852]
[1751034233818,2.86611,2425.5,2425.4,26.67632]
[1751034234319,2.86611,2425.5,2425.4,25.852]
[1751034235526,2.86611,2425.5,2425.2,3.2078]
[1751034235527,0.82435,2425.3,2425.2,3.2078]
[1751034235728,0.82435,2425.3,2425.2,29.0558]
[1751034236524,0.82435,2425.3,2425.2,29.88018]
[1751034236724,0.82435,2425.3,2425.2,29.0558]
[1751034236922,4.0355,2425.5,2425.2,29.88017]
[1751034237319,0.82433,2425.4,2425.3,0.82434]
[1751034237525,0.82435,2425.3,2425.2,29.88016]
[1751034237924,0.82435,2425.3,2425.2,29.0558]
[1751034239131,2.81805,2425.3,2425.2,29.0558]
[1751034239431,2.81805,2425.3,2425.2,3.2078]
[1751034239631,2.81805,2425.3,2425.2,29.0538]
[1751034239926,2.81805,2425.3,2425.2,29.0518]
[1751034241529,0.82452,2424.8,2424.7,6.901]
[1751034241924,0.82452,2424.8,2424.7,32.744]
[1751034242127,0.82452,2424.8,2424.7,6.901]
[1751034242430,0.82452,2424.8,2424.7,32.744]
[1751034243026,0.82452,2424.8,2424.7,6.901]
[1751034243232,0.82452,2424.8,2424.7,32.743]
[1751034244230,2.22622,2424.8,2424.7,32.742]
[1751034244420,2.22622,2424.8,2424.7,6.901]
[1751034244623,0.82459,2424.6,2424.5,50.7088]
[1751034244830,0.82469,2424.3,2424.2,3.2078]
[1751034245132,0.82469,2424.3,2424.2,36.77552]
[1751034245331,0.82469,2424.3,2424.2,35.9508]
[1751034245539,0.82469,2424.3,2424.2,3.2078]
[1751034245832,0.82472,2424.2,2424.1,6.902]
[1751034246033,0.82472,2424.2,2424.1,32.743]
[1751034246231,0.82483,2423.9,2423.8,52.0866]
[1751034246423,0.82483,2423.9,2423.8,84.8296]
[1751034246629,0.82483,2423.9,2423.8,50.7088]
[1751034246928,0.82483,2423.9,2423.8,83.4508]
[1751034247125,0.82483,2423.9,2423.8,50.7088]
[1751034247325,0.82483,2423.9,2423.8,3.2078]
[1751034248331,0.82483,2423.9,2423.8,29.0488]
[1751034248632,2.81853,2423.9,2423.8,29.0488]
[1751034250131,1.9937,2423.9,2423.8,29.0488]
[1751034250334,1.9937,2423.9,2423.8,29.87366]
[1751034250533,2.81855,2423.9,2423.8,25.839]
[1751034250931,1.9937,2423.9,2423.8,26.66386]
[1751034251235,0.7175,2424.4,2423.8,35.3859]
[1751034251439,0.82471,2424.3,2424.1,7.33881492]
[1751034251635,1.54218,2424.4,2424.2,25.841]
[1751034251937,4.03235,2424.8,2424.2,27.90278]
[1751034252139,1.90448045,2424.7,2424.4,7.33881492]
[1751034252431,0.82459,2424.6,2424.5,32.744]
[1751034252735,0.8246,2424.6,2424.5,32.744]
[1751034253834,0.82472,2424.2,2424.1,3.2078]
[1751034254032,0.0149,2424.6,2424.1,32.742]
[1751034254033,3.2078,2424.5,2424.1,32.742]
[1751034254231,0.82468,2424.4,2424.1,32.742]
[1751034254436,0.8247,2424.3,2424.2,0.82471]
[1751034254833,0.82472,2424.2,2424.1,33.56674]
[1751034255133,0.82471,2424.3,2424.2,0.82472]
[1751034255839,3.2078,2424.5,2424.1,32.742]
[1751034256130,4.16962,2424.5,2424.4,0.82466]
[1751034256336,0.96182,2424.5,2424.4,26.66266]
[1751034256532,0.96182,2424.5,2424.4,25.838]
[1751034256729,0.1372,2424.5,2424.0,7.72777]
[1751034256933,0.82475,2424.2,2424.1,25.838]
[1751034257132,3.2078,2424.5,2424.1,27.2362]
[1751034257336,0.82469,2424.3,2424.2,0.82472]
[1751034258440,2.81468,2424.4,2424.3,0.82469]
[1751034258739,2.81468,2424.4,2424.3,25.837]
[1751034260032,0.82472,2424.3,2424.2,7.72772]
[1751034260234,0.82472,2424.3,2424.2,33.56272]
[1751034261143,2.81468,2424.4,2424.3,0.82469]
[1751034261338,1.99,2424.4,2424.3,0.82469]
[1751034261743,0.82466,2424.4,2424.3,2.0607]
[1751034262043,0.82467,2424.4,2424.3,0.82469]
[1751034262249,1.99,2424.5,2424.2,32.738]
[1751034262739,0.82475,2424.2,2424.1,0.82474]
[1751034262942,0.82475,2424.2,2424.1,32.723]
[1751034263346,0.82476,2424.1,2424.0,6.889]
[1751034263538,0.82476,2424.1,2424.0,32.723]
[1751034263948,0.82476,2424.1,2424.0,33.54779]
[1751034264136,2.81476,2424.1,2424.0,33.54779]
[1751034264848,2.81476,2424.1,2424.0,32.723]
[1751034266151,0.82479,2424.0,2423.9,4.0326]
[1751034266341,0.82479,2424.0,2423.9,6.889]
[1751034266543,0.82479,2424.0,2423.6,6.889]
[1751034266544,0.82492,2423.7,2423.6,6.889]
[1751034266746,0.82492,2423.7,2423.6,33.54593]
[1751034266951,0.82488,2423.8,2423.7,0.82489]
[1751034267446,0.82487,2423.8,2423.7,0.82488]
[1751034267644,3.881,2423.9,2423.8,0.82486]
[1751034267850,3.881,2423.9,2423.8,26.65586]
[1751034268047,4.70583,2423.9,2423.8,26.65586]
[1751034268243,6.69583,2423.9,2423.8,26.65586]
[1751034268444,6.69583,2423.9,2423.8,25.831]
[1751034268755,2.6632,2423.9,2423.8,26.65586]
[1751034268946,3.48803,2423.9,2423.8,26.65586]
[1751034269145,3.48803,2423.9,2423.8,25.831]
[1751034270047,1.99,2423.9,2423.8,7.33881492]
[1751034270253,1.99,2423.9,2423.8,26.65486]
[1751034270447,3.2078,2424.2,2423.7,4.6717]
[1751034270655,4.0519,2424.1,2423.8,25.83]
[1751034270858,4.03263,2423.9,2423.8,25.83]
[1751034271555,4.03263,2423.9,2423.8,26.65486]
[1751034271759,4.03263,2423.9,2423.8,25.83]
[1751034271958,4.72953,2423.9,2423.8,25.83]
[1751034272461,4.72953,2423.9,2423.8,26.65486]
[1751034272859,4.72953,2423.9,2423.8,25.83]
[1751034273560,4.72953,2423.9,2423.8,26.65486]
[1751034273753,3.9047,2423.9,2423.8,26.65486]
[1751034274158,6.71953,2423.9,2423.8,25.83]
[1751034274457,0.82489,2423.7,2423.6,0.82492]
[1751034274658,0.82489,2423.7,2423.6,26.65192]
[1751034275457,5.8947,2423.9,2423.7,0.82487]
[1751034275760,0.82486,2423.8,2423.7,0.82487]
[1751034276058,6.71955,2423.9,2423.7,26.65287]
[1751034276260,6.71955,2423.9,2423.8,0.82486]
[1751034276459,0.82486,2423.8,2423.7,26.65287]
[1751034277048,6.71955,2423.9,2423.8,0.82486]
[1751034277259,0.82486,2423.8,2423.7,26.65287]
[1751034278564,3.2078,2423.3,2420.9,3.2078]
[1751034278767,3.2078,2423.3,2414.1,15.954]
[1751034278768,2.06365,2422.1,2421.3,13.27559828]